fUSD/lending_fUSD_20260305
["ID","MTS","AMOUNT","RATE_DAILY","PERIOD"]
[407702796,1772692241596,-848.0,0.00049315,2]
[407702797,1772692241605,-497.0,0.00049315,120]
[407702798,1772692241615,-848.0,0.00049315,2]
[407702799,1772692241624,-497.0,0.00049315,120]
[407702800,1772692241634,-848.0,0.00049315,2]
[407702801,1772692241643,-497.0,0.00049315,120]
[407702802,1772692241653,-497.0,0.00049315,120]
[407702803,1772692241662,-853.87755024,0.00049315,2]
[407702804,1772692241672,-504.39396598,0.00049315,120]
[407702805,1772692241681,-280.82619075,0.00049315,30]
[407702806,1772692241692,-662.13,0.00049315,60]
[407702807,1772692241701,-662.13,0.00049315,60]
[407702808,1772692241711,-600.0,0.00049356,60]
[407702809,1772692241720,-600.0,0.00049356,60]
[407702810,1772692241730,-500.0,0.00049356,60]
[407702811,1772692241740,-921.0,0.00049388,2]
[407702812,1772692241750,-1212.0,0.00049388,2]
[407702813,1772692241761,-1341.0,0.00049388,2]
[407702814,1772692241772,-478.95,0.000494,30]
[407702815,1772692241782,-1042.4,0.00049405,120]
[407702816,1772692241793,-500.0,0.00049454,120]
[407702817,1772692241803,-1228.21250774,0.00049495,36]
[407702818,1772692241813,-160.10599296,0.000495,120]
[407702819,1772692241825,-167.55543699,0.00049586,7]
[407702820,1772692241835,-662.13,0.00049589,60]
[407702821,1772692241845,-662.13,0.00049589,60]
[407702822,1772692241854,-846.0,0.00049725,31]
[407702823,1772692241867,-1228.21250774,0.00049776,37]
[407702824,1772692241877,-5759.84566924,0.000498,15]
[407702825,1772692241888,-153.67341002,0.000498,15]
[407702826,1772692241901,-184.18115764,0.000498,2]
[407702827,1772692241911,-1238.60460658,0.000498,2]
[407702828,1772692241921,-530.91122642,0.000498,2]
[407702829,1772692241931,-3773.36877896,0.000498,2]
[407702830,1772692241940,-167.55543699,0.0004986,7]
[407702831,1772692241951,-662.13,0.00049863,60]
[407702832,1772692241962,-662.13,0.00049863,60]
[407702833,1772692241974,-500.0,0.00049873,120]
[407702834,1772692241983,-500.0,0.00049873,120]
[407702835,1772692241993,-500.0,0.00049873,120]
[407702836,1772692242003,-500.0,0.00049873,120]
[407702837,1772692242013,-500.0,0.00049873,120]
[407702838,1772692242022,-155.93381401,0.00049873,120]
[407702839,1772692242032,-150.0,0.00049873,2]
[407702840,1772692242042,-264.68,0.00049876,120]
[407702841,1772692242052,-429.36192849,0.00049879,4]
[407702842,1772692242061,-150.0,0.00049889,7]
[407702843,1772692242075,-276.0,0.00049889,7]
[407702844,1772692242086,-208.55904597,0.0004989,30]
[407702845,1772692242096,-150.0,0.0004989,30]
[407702846,1772692242106,-150.0,0.0004989,30]
[407702847,1772692242117,-150.0,0.0004989,30]
[407702848,1772692242126,-150.0,0.0004989,30]
[407702849,1772692242141,-500.0,0.00049898,120]
[407702850,1772692242152,-500.0,0.00049898,2]
[407702851,1772692242163,-1559.83,0.00049898,2]
[407702852,1772692242174,-500.0,0.00049898,2]
[407702853,1772692242183,-500.0,0.00049898,2]
[407702854,1772692242192,-500.0,0.00049898,120]
[407702855,1772692242202,-300.0,0.00049898,2]
[407702856,1772692242211,-500.0,0.00049898,7]
[407702857,1772692242221,-687.78,0.00049898,2]
[407702858,1772692242233,-500.0,0.00049899,2]
[407702859,1772692242243,-500.0,0.00049899,2]
[407702860,1772692242254,-500.0,0.00049899,2]
[407702861,1772692242267,-500.0,0.00049899,2]
[407702862,1772692242277,-500.0,0.00049899,2]
[407702863,1772692242286,-500.0,0.00049899,2]
[407702864,1772692242295,-500.0,0.00049899,2]
[407702865,1772692242304,-500.0,0.00049899,2]
[407702866,1772692242315,-500.0,0.00049899,2]
[407702867,1772692242326,-500.0,0.00049899,2]
[407702868,1772692242336,-500.0,0.00049899,2]
[407702869,1772692242347,-349.76966358,0.00049899,2]
[407702870,1772692242358,-500.0,0.00049899,7]
[407702871,1772692242368,-500.0,0.00049899,7]
[407702872,1772692242378,-500.0,0.00049899,7]
[407702873,1772692242387,-500.0,0.00049899,7]
[407702874,1772692242396,-500.0,0.00049899,7]
[407702875,1772692242406,-252.35206245,0.00049899,7]
[407702876,1772692242415,-500.0,0.00049899,120]
[407702877,1772692242425,-500.0,0.00049899,120]
[407702878,1772692242435,-2017.87050745,0.00049899,120]
[407702879,1772692242444,-300.0,0.00049899,2]
[407702880,1772692242453,-300.0,0.00049899,2]
[407702881,1772692242462,-300.0,0.00049899,2]
[407702882,1772692242474,-300.0,0.00049899,2]
[407702883,1772692242483,-300.0,0.00049899,2]
[407702884,1772692242493,-300.0,0.00049899,2]
[407702885,1772692242502,-419.04203135,0.00049899,2]
[407702886,1772692242511,-201.27075793,0.00049899,90]
[407702887,1772692242521,-1258.22,0.00049899,2]
[407702888,1772692242530,-1258.22,0.00049899,2]
[407702889,1772692242539,-1258.22,0.00049899,2]
[407702890,1772692242548,-1258.22,0.00049899,2]
[407702891,1772692242558,-1258.22,0.00049899,2]
[407702892,1772692242567,-1258.22,0.00049899,2]
[407702893,1772692242576,-1258.22,0.00049899,2]
[407702894,1772692242585,-1258.22,0.00049899,2]
[407702895,1772692242594,-1258.22,0.00049899,2]
[407702896,1772692242604,-1258.22,0.00049899,2]
[407702897,1772692242613,-1258.22,0.00049899,2]
[407702898,1772692242622,-1258.22,0.00049899,2]
[407702899,1772692242632,-1258.22,0.00049899,2]
[407702900,1772692242641,-1258.22,0.00049899,2]
[407702901,1772692242650,-1258.22,0.00049899,2]
[407702902,1772692242661,-1258.22,0.00049899,2]
[407702903,1772692242670,-1258.22,0.00049899,2]
[407702904,1772692242679,-1258.22,0.00049899,2]
[407702905,1772692242688,-1258.22,0.00049899,2]
[407702906,1772692242698,-1258.33532011,0.00049899,2]
[407702907,1772692242708,-1077.41,0.00049899,2]
[407702910,1772692242717,-1077.41,0.00049899,2]
[407702912,1772692242726,-1077.41,0.00049899,2]
[407702915,1772692242736,-1077.41,0.00049899,2]
[407702917,1772692242745,-1077.41,0.00049899,2]
[407702918,1772692242755,-1077.41,0.00049899,2]
[407702919,1772692242764,-1077.41,0.00049899,2]
[407702921,1772692242774,-1077.41,0.00049899,2]
[407702922,1772692242784,-1077.41,0.00049899,2]
[407702923,1772692242793,-1077.41,0.00049899,2]
[407702924,1772692242802,-1077.41,0.00049899,2]
[407702925,1772692242811,-1077.41,0.00049899,2]
[407702926,1772692242821,-1077.41,0.00049899,2]
[407702927,1772692242830,-1077.41,0.00049899,2]
[407702928,1772692242839,-1077.41,0.00049899,2]
[407702929,1772692242857,-1077.41,0.00049899,2]
[407702930,1772692242869,-1077.41,0.00049899,2]
[407702931,1772692242879,-1077.41,0.00049899,2]
[407702933,1772692242890,-1077.41,0.00049899,2]
[407702934,1772692242904,-1077.53419376,0.00049899,2]
[407702936,1772692242915,-1463.6097229,0.00049899,90]
[407702938,1772692242924,-1371.81,0.00049899,2]
[407702939,1772692242935,-1371.81,0.00049899,2]
[407702940,1772692242945,-1371.81,0.00049899,2]
[407702941,1772692242954,-1371.81,0.00049899,2]
[407702942,1772692242967,-1371.81,0.00049899,2]
[407702944,1772692242977,-1371.81,0.00049899,2]
[407702946,1772692242987,-1371.81,0.00049899,2]
[407702947,1772692242997,-1371.81,0.00049899,2]
[407702948,1772692243007,-1371.81,0.00049899,2]
[407702949,1772692243017,-1371.81,0.00049899,2]
[407702950,1772692243027,-1371.81,0.00049899,2]
[407702951,1772692243037,-1371.81,0.00049899,2]
[407702952,1772692243047,-1371.81,0.00049899,2]
[407702953,1772692243058,-1371.81,0.00049899,2]
[407702954,1772692243068,-1371.81,0.00049899,2]
[407702955,1772692243079,-1371.81,0.00049899,2]
[407702956,1772692243090,-1371.81,0.00049899,2]
[407702957,1772692243100,-1371.81,0.00049899,2]
[407702958,1772692243111,-1371.81,0.00049899,2]
[407702959,1772692243122,-1371.87270372,0.00049899,2]
[407702960,1772692243132,-500.0,0.00049899,30]
[407702961,1772692243143,-500.0,0.00049899,30]
[407702962,1772692243154,-500.0,0.00049899,30]
[407702963,1772692243340,-500.0,0.00049899,30]
[407702964,1772692243379,-500.0,0.00049899,30]
[407702965,1772692243389,-500.0,0.00049899,30]
[407702966,1772692243398,-500.0,0.00049899,30]
[407702967,1772692243407,-500.0,0.00049899,30]
[407702968,1772692243416,-349.92362241,0.00049899,30]
[407702969,1772692243425,-500.0,0.00049899,120]
[407702970,1772692243435,-500.0,0.00049899,120]
[407702971,1772692243444,-500.0,0.00049899,120]
[407702972,1772692243453,-500.0,0.00049899,120]
[407702973,1772692243462,-297.22088153,0.00049899,120]
[407702974,1772692243471,-500.0,0.00049899,10]
[407702975,1772692243480,-500.0,0.00049899,10]
[407702976,1772692243490,-500.0,0.00049899,10]
[407702977,1772692243500,-500.0,0.00049899,10]
[407702979,1772692243509,-500.0,0.00049899,10]
[407702980,1772692243518,-500.0,0.00049899,10]
[407702981,1772692243527,-512.19785893,0.00049899,10]
[407702982,1772692243540,-500.0,0.00049899,2]
[407702983,1772692243549,-500.0,0.00049899,2]
[407702984,1772692243560,-500.0,0.00049899,2]
[407702986,1772692243570,-500.0,0.00049899,2]
[407702988,1772692243579,-500.0,0.00049899,2]
[407702989,1772692243589,-500.0,0.00049899,2]
[407702990,1772692243599,-424.33964987,0.00049899,2]
[407702991,1772692243608,-1515.23,0.00049899,15]
[407702992,1772692243618,-1515.23,0.00049899,15]
[407702993,1772692243627,-1515.23,0.00049899,15]
[407702994,1772692243636,-1515.23,0.00049899,15]
[407702996,1772692243646,-1515.23,0.00049899,15]
[407702998,1772692243655,-1515.23,0.00049899,15]
[407703000,1772692243665,-1515.23,0.00049899,15]
[407703002,1772692243674,-1515.23,0.00049899,15]
[407703003,1772692243683,-1515.23,0.00049899,15]
[407703004,1772692243693,-1515.23,0.00049899,15]
[407703005,1772692243702,-1515.23,0.00049899,15]
[407703006,1772692243712,-1515.23,0.00049899,15]
[407703007,1772692243721,-1515.23,0.00049899,15]
[407703008,1772692243734,-1515.23,0.00049899,15]
[407703009,1772692243743,-1515.23,0.00049899,15]
[407703010,1772692243753,-1515.23,0.00049899,15]
[407703011,1772692243763,-1515.23,0.00049899,15]
[407703012,1772692243772,-1515.23,0.00049899,15]
[407703013,1772692243781,-1515.23,0.00049899,15]
[407703014,1772692243791,-1515.26960433,0.00049899,15]
[407703015,1772692243800,-1559.83,0.00049899,2]
[407703016,1772692243810,-1559.83,0.00049899,2]
[407703017,1772692243819,-1559.83,0.00049899,2]
[407703018,1772692243828,-1559.83,0.00049899,2]
[407703019,1772692243838,-1559.83,0.00049899,2]
[407703020,1772692243847,-1559.83,0.00049899,2]
[407703021,1772692243856,-1559.83,0.00049899,2]
[407703022,1772692243866,-1559.83,0.00049899,2]
[407703023,1772692243876,-1559.83,0.00049899,2]
[407703024,1772692243886,-1559.83,0.00049899,2]
[407703025,1772692243900,-1559.83,0.00049899,2]
[407703026,1772692243910,-1559.83,0.00049899,2]
[407703027,1772692243919,-1559.83,0.00049899,2]
[407703028,1772692243930,-1559.83,0.00049899,2]
[407703029,1772692243939,-1559.83,0.00049899,2]
[407703030,1772692243949,-1559.83,0.00049899,2]
[407703031,1772692243959,-1559.83,0.00049899,2]
[407703032,1772692243970,-1559.83,0.00049899,2]
[407703033,1772692243979,-1559.91626308,0.00049899,2]
[407703034,1772692243988,-500.0,0.00049899,2]
[407703035,1772692243999,-500.0,0.00049899,2]
[407703036,1772692244008,-500.0,0.00049899,2]
[407703037,1772692244017,-500.0,0.00049899,2]
[407703038,1772692244027,-235.87687606,0.00049899,2]
[407703039,1772692244036,-500.0,0.00049899,2]
[407703040,1772692244045,-255.80908328,0.00049899,2]
[407703041,1772692244054,-500.0,0.00049899,120]
[407703042,1772692244063,-500.0,0.00049899,120]
[407703043,1772692244073,-500.0,0.00049899,120]
[407703044,1772692244082,-500.0,0.00049899,120]
[407703045,1772692244091,-500.0,0.00049899,120]
[407703046,1772692244101,-500.0,0.00049899,120]
[407703047,1772692244111,-500.0,0.00049899,120]
[407703048,1772692244122,-500.0,0.00049899,120]
[407703049,1772692244132,-500.0,0.00049899,120]
[407703050,1772692244141,-500.0,0.00049899,120]
[407703051,1772692244151,-500.0,0.00049899,120]
[407703052,1772692244160,-500.0,0.00049899,120]
[407703053,1772692244170,-500.0,0.00049899,120]
[407703054,1772692244180,-500.0,0.00049899,120]
[407703055,1772692244189,-554.58772676,0.00049899,120]
[407703056,1772692244201,-500.0,0.00049899,120]
[407703057,1772692244211,-500.0,0.00049899,120]
[407703058,1772692244220,-500.0,0.00049899,120]
[407703059,1772692244230,-500.0,0.00049899,120]
[407703060,1772692244239,-500.720022,0.00049899,120]
[407703061,1772692244248,-300.0,0.00049899,2]
[407703062,1772692244258,-300.0,0.00049899,2]
[407703063,1772692244269,-300.0,0.00049899,2]
[407703064,1772692244279,-300.0,0.00049899,2]
[407703065,1772692244289,-300.0,0.00049899,2]
[407703066,1772692244299,-300.0,0.00049899,2]
[407703067,1772692244309,-300.0,0.00049899,2]
[407703068,1772692244321,-300.0,0.00049899,2]
[407703069,1772692244331,-415.70981698,0.00049899,2]
[407703070,1772692244342,-500.0,0.00049899,120]
[407703071,1772692244352,-500.0,0.00049899,120]
[407703072,1772692244362,-500.0,0.00049899,120]
[407703073,1772692244373,-500.0,0.00049899,120]
[407703074,1772692244383,-500.0,0.00049899,120]
[407703075,1772692244392,-632.87,0.00049899,120]
[407703076,1772692244402,-500.0,0.00049899,7]
[407703077,1772692244411,-500.0,0.00049899,7]
[407703078,1772692244421,-500.0,0.00049899,7]
[407703079,1772692244431,-500.0,0.00049899,7]
[407703080,1772692244441,-500.0,0.00049899,7]
[407703081,1772692244453,-500.0,0.00049899,7]
[407703082,1772692244463,-500.0,0.00049899,7]
[407703083,1772692244472,-500.0,0.00049899,7]
[407703084,1772692244483,-299.09626451,0.00049899,7]
[407703085,1772692244492,-227.06731364,0.00049899,120]
[407703086,1772692244502,-687.78,0.00049899,2]
[407703087,1772692244512,-687.78,0.00049899,2]
[407703088,1772692244522,-687.78,0.00049899,2]
[407703089,1772692244532,-687.78,0.00049899,2]
[407703090,1772692244541,-687.78,0.00049899,2]
[407703091,1772692244551,-687.78,0.00049899,2]
[407703092,1772692244560,-687.78,0.00049899,2]
[407703093,1772692244570,-687.78,0.00049899,2]
[407703094,1772692244579,-687.78,0.00049899,2]
[407703095,1772692244588,-687.78,0.00049899,2]
[407703096,1772692244597,-687.78,0.00049899,2]
[407703097,1772692244607,-687.78,0.00049899,2]
[407703098,1772692244616,-687.78,0.00049899,2]
[407703099,1772692244626,-687.78,0.00049899,2]
[407703100,1772692244636,-687.78,0.00049899,2]
[407703101,1772692244646,-687.78,0.00049899,2]
[407703102,1772692244655,-687.78,0.00049899,2]
[407703103,1772692244667,-687.79391151,0.00049899,2]
[407703104,1772692244677,-5000.0,0.000499,120]
[407703105,1772692244687,-5000.0,0.000499,120]
[407703106,1772692244695,-63600.86,0.000499,120]
[407703107,1772692244707,-288414.73099788,0.000499,120]
[407703108,1772692244798,-72427.82315477,0.000499,120]
[407703109,1772692244810,-197398.97774395,0.000499,120]
[407703110,1772692244822,-136572.5719383,0.000499,120]
[407703111,1772692244833,-1254.41808677,0.000499,120]
[407703112,1772692244848,-413.12333169,0.000499,120]
[407703113,1772692244862,-4823.55054723,0.000499,120]
[407703114,1772692245057,-300.0,0.0004203,2]
[407703115,1772692245066,-130.54363122,0.0004203,2]
[407703116,1772692245078,-953.64812611,0.0004203,2]
[407703117,1772692245087,-300.0,0.0004203,2]
[407703118,1772692245097,-300.0,0.0004203,2]
[407703119,1772692245106,-192.25,0.00045,30]
[407703120,1772692245117,-190.78670032,0.00049799,120]
[407703121,1772692245127,-500.0,0.00049898,2]
[407703122,1772692245135,-85.36225416,0.00049899,2]
[407703123,1772692245147,-480.89169887,0.00049899,2]
[407703124,1772692245157,-20576.16857903,0.000499,120]
[407703125,1772692245186,-3115.8453346,0.000499,120]
[407703126,1772692245259,-495.28295223,0.00041167,2]
[407703127,1772692245281,-126.62304777,0.00041167,2]
[407703128,1772692245291,-300.0,0.0004203,2]
[407703129,1772692245301,-619.0,0.00044167,2]
[407703130,1772692245311,-5000.0,0.00045584,120]
[407703131,1772692245323,-619.0,0.00047167,2]
[407703132,1772692245335,-190.78670031,0.0004985,120]
[407703133,1772692245345,-19240.99025192,0.000499,120]
[407703136,1772692245992,-14411.37822088,0.00049894,2]
[407703137,1772692246220,-4653.65469999,0.00049894,2]
[407703138,1772692246233,-1164.98652,0.00049894,2]
[407703139,1772692246244,-8681.22155788,0.00049894,2]
[407703140,1772692246256,-371.0985,0.00049894,2]
[407703141,1772692246267,-264.7050025,0.00049894,2]
[407703146,1772692337348,500.0,0.00012378,2]
[407703147,1772692337629,806.68838406,0.00012378,2]
[407703148,1772692342097,192.95225901,0.00012378,2]
[407703149,1772692342384,277.92447556,0.00012378,2]
[407703150,1772692346053,629.57743468,0.00012378,2]
[407703151,1772692347307,230.6582544,0.00012378,2]
[407703152,1772692349991,502.18701332,0.00012378,2]
[407703153,1772692350576,500.0,0.00012378,2]
[407703154,1772692350653,500.0,0.00012378,2]
[407703155,1772692350860,443.27005909,0.00012378,2]
[407703156,1772692366586,-150.0,0.00027,7]
[407703157,1772692503047,316.88116143,0.00016973,2]
[407703158,1772692508349,-5000.0,0.00021096,120]
[407703159,1772692508408,-195.0,0.000352,120]
[407703160,1772692508466,-195.0,0.00036583,120]
[407703161,1772692508522,-600.0,0.000378,120]
[407703162,1772692508577,-185.43674207,0.00039774,120]
[407703163,1772692508631,-2097.93,0.00039774,30]
[407703164,1772692508690,-609.85,0.00039774,30]
[407703165,1772692508749,-15947.0,0.00040853,60]
[407703166,1772692508808,-3796.16,0.00040853,30]
[407703167,1772692508871,-15947.0,0.000422,60]
[407703168,1772692508932,-195.0,0.00042296,120]
[407703169,1772692508990,-195.0,0.00042296,120]
[407703170,1772692509049,-189.35232075,0.00042296,120]
[407703171,1772692509108,-186.94,0.00043453,120]
[407703172,1772692509170,-15947.0,0.00043547,60]
[407703173,1772692509226,-1500.0,0.00044135,120]
[407703174,1772692509282,-15947.0,0.00044894,60]
[407703175,1772692509341,-500.0,0.00045354,30]
[407703176,1772692509397,-15947.0,0.00046241,60]
[407703177,1772692509457,-500.0,0.00046575,60]
[407703178,1772692509517,-170.82441599,0.00046575,60]
[407703179,1772692509571,-186.94,0.00046878,120]
[407703180,1772692509628,-15947.0,0.00047588,60]
[407703181,1772692509687,-15947.0,0.00048934,60]
[407703182,1772692509744,-2209.805,0.00049356,86]
[407703183,1772692509802,-166.75329585,0.00049356,86]
[407703184,1772692509861,-700.0,0.00049356,60]
[407703185,1772692509917,-700.0,0.00049356,60]
[407703186,1772692509975,-500.0,0.00049356,60]
[407703187,1772692510033,-1818.23,0.000498,120]
[407703188,1772692510087,-500.0,0.00049893,120]
[407703189,1772692510144,-500.0,0.00049899,120]
[407703190,1772692510199,-151.0,0.00049899,120]
[407703191,1772692510256,-151.0,0.00049899,120]
[407703192,1772692510313,-500.0,0.00049899,120]
[407703193,1772692510367,-156.587,0.00049899,120]
[407703194,1772692510423,-151.0,0.00049899,120]
[407703195,1772692510478,-500.0,0.00049899,120]
[407703196,1772692510531,-162.380719,0.00049899,120]
[407703197,1772692510585,-151.0,0.00049899,120]
[407703198,1772692510800,-168.3888056,0.00049899,120]
[407703199,1772692510861,-500.0,0.00049899,120]
[407703200,1772692510917,-151.0,0.00049899,120]
[407703201,1772692510975,-500.0,0.00049899,120]
[407703202,1772692511035,-151.0,0.00049899,120]
[407703203,1772692511095,-500.0,0.00049899,120]
[407703204,1772692511152,-151.0,0.00049899,120]
[407703205,1772692511209,-364.0000458,0.00049899,120]
[407703206,1772692511263,-151.0,0.00049899,120]
[407703207,1772692511318,-151.0,0.00049899,120]
[407703208,1772692511373,-151.0,0.00049899,120]
[407703209,1772692511432,-500.0,0.00049899,120]
[407703210,1772692511487,-500.0,0.00049899,120]
[407703211,1772692511542,-500.0,0.00049899,120]
[407703212,1772692511595,-500.0,0.00049899,120]
[407703213,1772692511651,-3579.0,0.00049899,120]
[407703214,1772692511706,-500.0,0.00049899,120]
[407703215,1772692511765,-3579.0,0.00049899,120]
[407703216,1772692511824,-500.0,0.00049899,120]
[407703217,1772692511885,-500.0,0.00049899,120]
[407703218,1772692511944,-3579.0,0.00049899,120]
[407703219,1772692512000,-277.2828889,0.00049899,120]
[407703220,1772692512056,-500.0,0.00049899,120]
[407703221,1772692512113,-3579.0,0.00049899,120]
[407703222,1772692512169,-281.32536194,0.00049899,120]
[407703223,1772692512228,-399.28956955,0.00049899,120]
[407703224,1772692512283,-251.0,0.00049899,120]
[407703225,1772692512339,-254.58902453,0.00049899,120]
[407703226,1772692512395,-500.0,0.00049899,120]
[407703227,1772692512454,-500.0,0.00049899,120]
[407703228,1772692512514,-500.0,0.00049899,120]
[407703229,1772692512571,-500.0,0.00049899,120]
[407703230,1772692512630,-518.5,0.00049899,120]
[407703231,1772692512687,-537.6845,0.00049899,120]
[407703232,1772692512742,-530.83128021,0.00049899,120]
[407703233,1772692512798,-151.0,0.00049899,120]
[407703234,1772692512859,-557.5788265,0.00049899,120]
[407703235,1772692512913,-151.0,0.00049899,120]
[407703236,1772692512972,-578.20924308,0.00049899,120]
[407703237,1772692513029,-151.0,0.00049899,120]
[407703238,1772692513086,-599.60298507,0.00049899,120]
[407703239,1772692513144,-621.78829552,0.00049899,120]
[407703240,1772692513202,-644.79446246,0.00049899,120]
[407703241,1772692513260,-668.65185757,0.00049899,120]
[407703242,1772692513338,-693.3919763,0.00049899,120]
[407703243,1772692513402,-719.04747942,0.00049899,120]
[407703244,1772692513464,-745.65223616,0.00049899,120]
[407703245,1772692513523,-773.2413689,0.00049899,120]
[407703246,1772692513582,-801.85129955,0.00049899,120]
[407703247,1772692513641,-831.51979763,0.00049899,120]
[407703248,1772692513699,-862.28603014,0.00049899,120]
[407703249,1772692513757,-894.19061326,0.00049899,120]
[407703250,1772692513815,-927.27566595,0.00049899,120]
[407703251,1772692513873,-961.58486559,0.00049899,120]
[407703252,1772692513932,-997.16350561,0.00049899,120]
[407703253,1772692513991,-1888.77776647,0.000499,54]
[407703254,1772692514051,-4255761.80003386,0.000499,120]
[407703255,1772692514106,-190.78670031,0.000499,120]
[407703256,1772692514161,-175.73799251,0.000499,30]
[407703257,1772692514216,-539.03,0.000499,30]
[407703258,1772692514272,-200.0,0.000499,120]
[407703259,1772692514329,-152.98,0.000499,30]
[407703260,1772692514387,-185.43674207,0.000499,120]
[407703261,1772692514446,-700.0,0.00049904,60]
[407703262,1772692514501,-700.0,0.00049904,60]
[407703263,1772692514554,-150.0,0.00049906,30]
[407703264,1772692514609,-150.0,0.00049923,30]
[407703265,1772692514663,-150.0,0.00049939,30]
[407703266,1772692514718,-150.0,0.00049955,30]
[407703267,1772692514773,-150.0,0.00049964,30]
[407703268,1772692514828,-150.0,0.0004997,30]
[407703269,1772692514883,-150.0,0.00049971,30]
[407703270,1772692514941,-287.1881398,0.0004998,120]
[407703271,1772692515000,-150.0,0.00049987,30]
[407703272,1772692515057,-621.08733865,0.00049999,120]
[407703273,1772692515117,-318.05269876,0.00049999,120]
[407703274,1772692515174,-500.0,0.00049999,120]
[407703275,1772692515231,-440.85052735,0.00049999,120]
[407703276,1772692515286,-2500.0,0.0005,120]
[407703277,1772692515341,-500.0,0.0005,120]
[407703278,1772692515399,-531.6162873,0.0005,120]
[407703279,1772692515456,-316.31,0.0005,120]
[407703280,1772692515514,-18410.25,0.0005,120]
[407703281,1772692515570,-161.61981477,0.0005,120]
[407703282,1772692515625,-175.38189418,0.0005,30]
[407703283,1772692515682,-213.63905563,0.0005,120]
[407703284,1772692515738,-496.13,0.0005,120]
[407703285,1772692515794,-6311.01199867,0.0005,120]
[407703286,1772692515851,-10123.0,0.0005,120]
[407703287,1772692515909,-740.37586144,0.0005,120]
[407703288,1772692515967,-366.0,0.0005,120]
[407703289,1772692516027,-2950.71,0.0005,120]
[407703290,1772692516085,-350.0,0.0005,120]
[407703291,1772692516143,-150.0,0.0005,40]
[407703292,1772692516202,-679.0,0.0005,90]
[407703293,1772692516261,-3000.0,0.0005,30]
[407703294,1772692516321,-1511577.31566933,0.0005,30]
[407703295,1772692519460,-546.47854404,0.00045795,30]
[407703296,1772692519517,-266.452,0.00046497,120]
[407703297,1772692519575,-520.0,0.00049899,120]
[407703298,1772692519633,-201.12765536,0.00049899,120]
[407703299,1772692519697,-500.0,0.00049899,120]
[407703300,1772692519758,-2488422.68433067,0.0005,30]
[407703301,1772692519822,-253.909692,0.0005,120]
[407703302,1772692519883,-5000.0,0.0005,120]
[407703303,1772692519952,-5000.0,0.0005,120]
[407703304,1772692520016,-5000.0,0.0005,120]
[407703305,1772692520079,-5000.0,0.0005,120]
[407703306,1772692520142,-5000.0,0.0005,120]
[407703307,1772692520205,-5000.0,0.0005,120]
[407703308,1772692520265,-2358.635575,0.0005,120]
[407703309,1772692520325,-371.25262004,0.0005,120]
[407703310,1772692520386,-498.2,0.0005,120]
[407703311,1772692520445,-150.0,0.00050003,30]
[407703312,1772692520505,-150.0,0.00050019,30]
[407703313,1772692520561,-153.44617966,0.00050026,120]
[407703314,1772692520619,-150.0,0.00050035,30]
[407703315,1772692520677,-150.0,0.00050038,30]
[407703316,1772692520736,-150.0,0.00050049,30]
[407703317,1772692520795,-150.0,0.00050051,30]
[407703318,1772692520854,-1228.21250774,0.00050057,38]
[407703319,1772692520913,-150.0,0.00050067,30]
[407703320,1772692520973,-150.0,0.00050083,30]